bitfinex/quotes_BTCUSD_20260311
["timestamp","ask_amount","ask_price","bid_price","bid_amount"]
[1773189454973,0.00022001,70028.0,70013.0,0.04219611]
[1773189455534,0.00022001,70028.0,70014.0,0.07141428]
[1773189455853,0.00022001,70028.0,70015.0,0.04219611]
[1773189457651,0.00022001,70028.0,70011.0,0.07141428]
[1773189457652,0.03863264,70027.0,70006.0,0.04219611]
[1773189457874,0.04007264,70027.0,70009.0,0.00144]
[1773189458290,0.04007264,70027.0,70008.0,0.0001122]
[1773189458477,0.04007264,70027.0,70005.0,0.0714204]
[1773189458478,0.03863264,70026.0,70005.0,0.00144]
[1773189458639,0.03874477,70026.0,70005.0,0.00144]
[1773189458844,0.03874477,70026.0,70004.0,0.06286385]
[1773189459093,0.03874477,70026.0,70005.0,0.00144]
[1773189459271,0.05437881,70020.0,70005.0,0.00144]
[1773189459482,0.03863264,70017.0,70004.0,0.06286385]
[1773189459796,0.03863264,70015.0,70004.0,0.06286385]
[1773189462915,0.03863264,70015.0,70004.0,0.06306385]
[1773189464125,0.07141354,70015.0,70004.0,0.17619655]
[1773189464328,0.03863264,70014.0,70004.0,0.17619655]
[1773189464726,0.071413,70016.0,70004.0,0.17763655]
[1773189465133,0.071413,70016.0,70005.0,0.1131327]
[1773189465329,0.071413,70016.0,70005.0,0.1127327]
[1773189465704,0.03863264,70015.0,70005.0,0.1127327]
[1773189465914,0.03863264,70015.0,70004.0,0.06450385]
[1773189466119,0.03863264,70015.0,70004.0,0.00164]
[1773189467442,0.03863264,70021.0,70005.0,0.04219611]
[1773189468823,0.07140816,70020.0,70006.0,0.07142244]
[1773189469084,0.04152111,70017.0,70007.0,0.00144]
[1773189469256,0.04152111,70021.0,70007.0,0.00144]
[1773189469428,0.04152111,70021.0,70008.0,0.00144]
[1773189470105,0.04296111,70021.0,70008.0,0.00144]
[1773189470912,0.07140816,70020.0,70009.0,0.07141938]
[1773189471899,0.04162915,70019.0,70009.0,0.07141938]
[1773189472823,0.04162915,70019.0,70008.0,0.07305938]
[1773189473030,0.04162915,70017.0,70009.0,0.07141938]
[1773189475567,0.11304139,70016.0,70008.0,0.0730601]
[1773189477207,0.07141224,70016.0,70008.0,0.0730601]
[1773189477412,0.07140816,70020.0,70008.0,0.0730601]
[1773189477597,0.04162915,70018.0,70008.0,0.0730601]
[1773189479588,0.04162915,70016.0,70005.0,0.07142337]
[1773189479787,0.04162915,70016.0,70004.0,0.0002]
[1773189479788,0.04162915,70009.0,69993.0,0.00144]
[1773189479957,0.04162915,70007.0,69993.0,0.00144]
[1773189480366,0.04162915,70007.0,69989.0,0.00164]
[1773189480563,0.04162915,69999.0,69984.0,0.00562]
[1773189480770,0.05441791,70000.0,69970.0,0.04133306]
[1773189480771,0.04162915,69993.0,69970.0,0.04133306]
[1773189481099,0.04162915,69989.0,69975.0,0.07168395]
[1773189481293,0.04162915,69989.0,69976.0,0.04093306]
[1773189481489,0.11306901,69989.0,69977.0,0.07145204]
[1773189481703,0.11450901,69989.0,69976.0,0.07145204]
[1773189482205,0.00144,69988.0,69976.0,0.07145204]
[1773189483531,0.0728816,69988.0,69976.0,0.07145204]
[1773189483722,0.11451075,69988.0,69976.0,0.07145204]
[1773189483913,0.11307075,69988.0,69976.0,0.07145204]
[1773189484140,0.00144,69989.0,69976.0,0.07145204]
[1773189484358,0.00144,69989.0,69977.0,0.04093306]
[1773189484711,0.07143895,69990.0,69977.0,0.04093306]
[1773189484932,0.00144,69989.0,69977.0,0.04093306]
[1773189485549,0.07141479,70014.0,69978.0,0.07145102]
[1773189485826,0.22545145,70019.0,69975.0,0.00023]
[1773189485827,0.001,69990.0,69975.0,0.00023]
[1773189486026,0.001,69990.0,69960.0,0.07146882]
[1773189486027,0.04306915,69989.0,69960.0,0.07146882]
[1773189486453,0.04406915,69989.0,69961.0,0.16704255]
[1773189487531,0.07144081,69988.0,69961.0,0.0955751]
[1773189487726,0.04162915,69979.0,69957.0,0.07291247]
[1773189487927,0.16335893,69980.0,69957.0,0.07291247]
[1773189487928,0.04162915,69977.0,69957.0,0.07291247]
[1773189488485,0.04149789,69977.0,69957.0,0.07147247]
[1773189488635,0.00144,69976.0,69957.0,0.07147247]
[1773189488827,0.04306915,69975.0,69957.0,0.07184668]
[1773189489102,0.04162915,69973.0,69957.0,0.07184668]
[1773189489310,0.04162915,69971.0,69957.0,0.07184668]
[1773189489787,0.07145835,69971.0,69970.0,0.0002]
[1773189489964,0.1145275,69971.0,69970.0,0.0002]
[1773189490364,0.04162915,69970.0,69963.0,0.0002]
[1773189491908,0.04162915,69970.0,69957.0,0.00037421]
[1773189491909,0.04162915,69968.0,69957.0,0.00037421]
[1773189492054,0.04162915,69968.0,69949.0,0.00144]
[1773189492260,0.04162915,69968.0,69947.0,0.00068]
[1773189492723,0.04162915,69968.0,69947.0,0.07216186]
[1773189493135,0.00144,69967.0,69948.0,0.04093306]
[1773189493341,0.04162915,69967.0,69948.0,0.04093306]
[1773189493544,0.00144,69966.0,69948.0,0.04093306]
[1773189493959,0.04306915,69965.0,69950.0,0.04093306]
[1773189494320,0.04306915,69965.0,69949.0,0.07148065]
[1773189494321,0.04306915,69965.0,69951.0,0.04237306]
[1773189497050,0.07146532,69964.0,69952.0,0.07147758]
[1773189499081,0.07146532,69964.0,69952.0,0.11241064]
[1773189501455,0.04066653,69963.0,69951.0,0.0002]
[1773189501660,0.04066653,69963.0,69951.0,0.07167802]
[1773189502258,0.00144,69962.0,69951.0,0.07167802]
[1773189503068,0.04066653,69963.0,69951.0,0.07167802]
[1773189503267,0.04066653,69963.0,69951.0,0.0002]
[1773189503268,0.07146838,69961.0,69951.0,0.0002]
[1773189505186,0.07147043,69959.0,69951.0,0.0002]
[1773189505825,0.04614788,69957.0,69937.0,0.07169261]
[1773189506041,0.04066653,69956.0,69937.0,0.0002]
[1773189506258,0.04066653,69954.0,69937.0,0.0002]
[1773189506858,0.04066653,69954.0,69944.0,0.0002]
[1773189507504,0.04026653,69952.0,69937.0,0.0002]
[1773189509226,0.04126653,69952.0,69937.0,0.0002]
[1773189509433,0.0714786,69951.0,69937.0,0.0002]
[1773189509634,0.04066653,69950.0,69944.0,0.090069]
[1773189509813,0.00144,69949.0,69944.0,0.090069]
[1773189509986,0.04066653,69948.0,69937.0,0.0002]
[1773189512516,0.04066653,69946.0,69937.0,0.0002]
[1773189513909,0.04166653,69946.0,69937.0,0.0002]
[1773189514107,0.04066653,69946.0,69937.0,0.0002]
[1773189514590,0.04066653,69944.0,69937.0,0.0002]
[1773189514926,0.04210653,69943.0,69937.0,0.0002]
[1773189515360,0.00144,69943.0,69937.0,0.0002]
[1773189516991,0.0739275,69943.0,69937.0,0.0002]
[1773189518335,0.00144,69946.0,69937.0,0.0002]
[1773189518537,0.07148371,69946.0,69937.0,0.0002]
[1773189519965,0.07248371,69946.0,69937.0,0.0002]
[1773189522202,0.07148371,69946.0,69937.0,0.0002]
[1773189523616,0.06148371,69946.0,69937.0,0.0002]
[1773189524266,0.06148371,69946.0,69937.0,0.0092069]
[1773189527310,0.06148371,69946.0,69924.0,0.07150609]
[1773189527522,0.05452681,69936.0,69916.0,0.04028671]
[1773189527734,0.04198172,69933.0,69916.0,0.0002]
[1773189527903,0.03198172,69925.0,69916.0,1e-08]
[1773189528613,0.03198172,69925.0,69903.0,0.0002]
[1773189528614,0.03198172,69925.0,69908.0,0.00144]
[1773189528615,0.02198172,69925.0,69908.0,0.00144]
[1773189528812,0.04198172,69919.0,69908.0,0.00144]
[1773189528979,0.00144,69926.0,69905.0,0.04047635]
[1773189528980,0.18455338,69926.0,69905.0,0.04047635]
[1773189529183,0.00144,69925.0,69907.0,0.04047635]
[1773189529618,0.07150007,69930.0,69908.0,0.07152257]
[1773189529824,0.03934015,69929.0,69923.0,0.0002]
[1773189529999,0.03894015,69929.0,69914.0,0.03941214]
[1773189530216,0.00144,69928.0,69914.0,0.03941214]
[1773189530631,0.03750015,69929.0,69914.0,0.03941214]
[1773189530831,0.00144,69928.0,69914.0,0.03941214]
[1773189531293,0.00144,69927.0,69914.0,0.03941214]
[1773189532126,0.07150416,69926.0,69914.0,0.03941214]
[1773189534253,0.07150416,69926.0,69909.0,0.0008]
[1773189534453,0.03790015,69925.0,69909.0,0.0008]
[1773189536272,0.0715062,69924.0,69909.0,0.0008]
[1773189536475,0.03790015,69923.0,69909.0,0.0008]
[1773189538181,0.0715062,69924.0,69910.0,0.03941214]
[1773189538361,0.03790015,69924.0,69910.0,0.03941214]
[1773189540500,0.03790015,69924.0,69909.0,0.0008]
[1773189540501,0.03790015,69922.0,69909.0,0.0008]
[1773189540700,0.00144,69921.0,69909.0,0.0008]
[1773189540868,0.00144,69920.0,69910.0,0.03941214]
[1773189541512,0.07172915,69934.0,69910.0,0.03941214]
[1773189541703,0.07172921,69934.0,69910.0,0.03941214]
[1773189542555,0.07172921,69934.0,69912.0,0.03941214]
[1773189542731,0.03790015,69933.0,69914.0,0.03941214]
[1773189543647,0.07172969,69934.0,69914.0,0.03941214]
[1773189544555,0.10962984,69934.0,69916.0,0.03941214]
[1773189545629,0.07172969,69934.0,69916.0,0.03941214]
[1773189545839,0.10962984,69934.0,69916.0,0.03941214]
[1773189547065,0.10962984,69934.0,69917.0,0.07151336]
[1773189547276,0.07172969,69934.0,69918.0,0.03941214]
[1773189549331,0.07172969,69934.0,69920.0,0.03941214]
[1773189549991,0.07148549,69945.0,69920.0,0.03941214]
[1773189550388,0.00144,69944.0,69920.0,0.03941214]
[1773189550590,0.00144,69943.0,69920.0,0.03941214]
[1773189550993,0.00144,69942.0,69920.0,0.03941214]
[1773189551341,0.00144,69942.0,69922.0,0.03941214]
[1773189551841,0.03790015,69939.0,69923.0,0.00144]
[1773189552042,0.03790015,69939.0,69924.0,0.03941214]
[1773189552260,0.03790015,69939.0,69924.0,0.04085214]
[1773189552601,0.03934015,69942.0,69925.0,0.04085214]
[1773189553409,0.05477112,69950.0,69931.0,0.03941214]
[1773189553410,0.00022001,69946.0,69931.0,0.03941214]
[1773189553569,0.07170376,69946.0,69931.0,0.03941214]
[1773189554228,0.07170376,69946.0,69931.0,0.04085214]
[1773189554392,0.07170445,69946.0,69931.0,0.04085214]
[1773189554615,0.00144,69945.0,69931.0,0.04085214]
[1773189554814,0.00033205,69946.0,69931.0,0.04085214]
[1773189555117,0.00144,69945.0,69932.0,0.03941214]
[1773189555498,0.00177205,69946.0,69934.0,0.03941214]
[1773189556222,0.00022001,69948.0,69934.0,0.03941214]
[1773189556369,0.00022001,69948.0,69934.0,0.03952418]
[1773189557126,0.00022001,69948.0,69934.0,0.04052418]
[1773189557275,0.00022001,69948.0,69934.0,0.03952418]
[1773189557825,0.00022001,69948.0,69936.0,0.03941214]
[1773189557989,0.00022001,69948.0,69938.0,0.03941214]
[1773189559832,0.00022001,69948.0,69939.0,0.07149087]
[1773189561192,0.00022001,69948.0,69938.0,0.07149087]
[1773189561408,0.07170192,69948.0,69937.0,0.07293262]
[1773189561824,0.00022001,69948.0,69937.0,0.07293262]
[1773189564529,0.00022001,69948.0,69936.0,0.07149189]
[1773189564530,0.03753076,69947.0,69934.0,0.00011204]
[1773189565367,0.03753076,69947.0,69934.0,0.07160768]
[1773189565599,0.00144,69946.0,69934.0,0.00011204]
[1773189565735,0.00144,69945.0,69934.0,0.00011204]
[1773189566323,0.03753076,69944.0,69934.0,0.00011204]
[1773189566525,0.07148678,69943.0,69934.0,0.00011204]
[1773189569548,0.00144,69945.0,69935.0,0.0379941]
[1773189569701,0.00144,69944.0,69935.0,0.0379941]
[1773189570670,0.00022001,69948.0,69937.0,0.0379941]
[1773189571048,0.00023,69950.0,69937.0,0.0379941]
[1773189571837,0.07170975,69950.0,69937.0,0.0379941]
[1773189572032,0.00023,69950.0,69937.0,0.0379941]
[1773189572857,0.07171007,69950.0,69939.0,0.0379941]
[1773189574468,0.07171007,69950.0,69940.0,0.00144]
[1773189574679,0.00023,69950.0,69941.0,0.0379941]
[1773189576523,0.09028901,69960.0,69943.0,0.0379941]
[1773189576646,0.16175877,69960.0,69943.0,0.0379941]
[1773189576847,0.19928953,69960.0,69943.0,0.0379941]
[1773189577053,0.16175877,69960.0,69943.0,0.0379941]
[1773189577256,0.03753076,69959.0,69943.0,0.0379941]
[1773189578520,0.07147145,69958.0,69945.0,0.0379941]
[1773189578662,0.07147145,69958.0,69946.0,0.00144]
[1773189580334,0.03753076,69957.0,69946.0,0.00144]
[1773189580686,0.07147349,69956.0,69946.0,0.00144]
[1773189581894,0.03753076,69955.0,69946.0,0.00144]
[1773189583394,0.10900545,69955.0,69946.0,0.00144]
[1773189584094,0.03753076,69954.0,69939.0,0.0714908]
[1773189584290,0.03753076,69952.0,69939.0,0.0714908]
[1773189585600,0.10900918,69952.0,69939.0,0.0714908]
[1773189585952,0.10900918,69952.0,69939.0,0.1094849]
[1773189589821,0.04004814,69951.0,69938.0,0.00144]
[1773189589979,0.04004814,69951.0,69938.0,0.07293164]
[1773189590508,0.04004814,69951.0,69938.0,0.11302366]
[1773189590883,0.07147842,69952.0,69938.0,0.11302366]
[1773189594426,0.00022001,69951.0,69938.0,0.11302366]
[1773189596710,0.07147962,69950.0,69939.0,0.04009202]
[1773189598601,0.07147962,69950.0,69938.0,0.07293164]
[1773189598841,0.11152776,69950.0,69938.0,0.07293164]
[1773189602421,0.07147962,69950.0,69939.0,0.04009202]
[1773189604702,0.07147962,69950.0,69939.0,0.11158253]
[1773189605673,0.07147962,69950.0,69939.0,0.10158253]
[1773189607471,0.12600071,69950.0,69938.0,0.07313181]
[1773189608477,0.07147962,69950.0,69938.0,0.07313181]
[1773189610387,0.11152776,69950.0,69938.0,0.07313181]
[1773189611395,0.11152776,69950.0,69923.0,0.0002]
[1773189611396,0.04004814,69949.0,69923.0,0.0002]
[1773189611593,0.04004814,69934.0,69923.0,0.0002]
[1773189611811,0.04004814,69934.0,69920.0,0.0002]
[1773189612428,0.04004814,69934.0,69919.0,0.00164]
[1773189612722,0.04004814,69929.0,69919.0,0.0002]
[1773189612942,0.04004814,69927.0,69919.0,0.0002]
[1773189613604,0.1115523,69926.0,69919.0,0.0002]
[1773189618703,0.07150416,69926.0,69912.0,0.0002]
[1773189618905,0.04004814,69921.0,69909.0,0.0008]
[1773189619068,0.05452109,69922.0,69909.0,0.0008]
[1773189619069,0.04004814,69919.0,69909.0,0.0008]
[1773189619419,0.04004814,69919.0,69912.0,0.0002]
[1773189619998,0.04004814,69919.0,69909.0,0.0008]
[1773189620201,0.04004814,69919.0,69902.0,0.07152859]
[1773189620202,0.03577784,69917.0,69900.0,0.00585]
[1773189620364,0.05452109,69910.0,69900.0,0.00596198]
[1773189620868,0.05452109,69910.0,69896.0,0.00048]
[1773189621046,0.05452109,69910.0,69890.0,0.03155818]
[1773189621047,0.03577784,69909.0,69890.0,0.03155818]
[1773189621246,0.03589,69909.0,69890.0,0.03155818]
[1773189621408,0.03589,69909.0,69890.0,0.03299818]
[1773189621607,0.05452109,69900.0,69890.0,0.03155818]
[1773189622070,0.09029893,69900.0,69890.0,0.03155818]
[1773189622294,0.09029893,69900.0,69891.0,0.03822165]
[1773189622295,0.00144,69900.0,69891.0,0.03822165]
[1773189622889,0.00244,69900.0,69891.0,0.03822165]
[1773189623098,0.00144,69900.0,69891.0,0.03822165]
[1773189623730,0.00144,69900.0,69890.0,0.03155818]
[1773189624057,0.00104,69900.0,69890.0,0.06977983]
[1773189626996,0.00104,69900.0,69890.0,0.14152066]
[1773189627715,0.00064,69900.0,69890.0,0.14152066]
[1773189628865,0.00064,69900.0,69886.0,0.07154508]
[1773189628866,0.12669246,69900.0,69887.0,0.03822165]
[1773189629023,0.03577784,69899.0,69886.0,0.07154508]
[1773189629212,0.00064,69900.0,69887.0,0.03822165]
[1773189630760,0.12669212,69900.0,69887.0,0.03822165]
[1773189630911,0.12669212,69900.0,69888.0,0.07154304]
[1773189631615,0.03577784,69899.0,69888.0,0.07154304]
[1773189632083,0.00064,69900.0,69889.0,0.03822165]
[1773189633447,0.07217081,69900.0,69889.0,0.10976279]
[1773189634076,0.03577784,69899.0,69889.0,0.07154114]
[1773189634870,0.03577784,69899.0,69889.0,0.07174114]
[1773189635294,0.1266919,69900.0,69889.0,0.07174114]
[1773189636314,0.1266919,69900.0,69889.0,0.0002]
[1773189638521,0.03577784,69899.0,69889.0,0.0002]
[1773189640335,0.10730963,69899.0,69889.0,0.0002]
[1773189641506,0.05516109,69900.0,69889.0,0.03842165]
[1773189641706,0.12691213,69900.0,69889.0,0.03842165]
[1773189642208,0.12691213,69900.0,69889.0,0.0002]
[1773189643114,0.12691213,69900.0,69889.0,0.07174201]
[1773189643853,0.12691213,69900.0,69889.0,0.10996366]
[1773189644408,0.12691213,69900.0,69889.0,0.07174201]
[1773189644607,0.12691213,69900.0,69889.0,0.0002]
[1773189645204,0.12691213,69900.0,69871.0,0.07156021]
[1773189645418,0.05452109,69890.0,69879.0,0.07184121]
[1773189645818,0.05452109,69890.0,69880.0,0.00144]
[1773189646369,0.05452109,69890.0,69879.0,0.07184121]
[1773189646666,0.05452109,69890.0,69880.0,0.00144]
[1773189647189,0.10328395,69898.0,69880.0,0.00144]
[1773189647190,0.00022001,69900.0,69881.0,0.03822165]
[1773189647325,0.07175093,69900.0,69883.0,0.03822165]
[1773189649062,0.12634348,69900.0,69883.0,0.03822165]
[1773189649289,0.26897642,69900.0,69884.0,0.07154713]
[1773189649465,0.12634348,69900.0,69885.0,0.03701834]
[1773189649821,0.12634348,69900.0,69884.0,0.07154713]
[1773189649822,0.00022001,69900.0,69886.0,0.03845834]
[1773189649953,0.00144,69905.0,69886.0,0.03845834]
[1773189650154,0.1426348,69904.0,69886.0,0.03845834]
[1773189650356,0.05459255,69900.0,69886.0,0.03845834]
[1773189650602,0.03626706,69903.0,69886.0,0.03845834]
[1773189650603,0.03626706,69902.0,69886.0,0.03845834]
[1773189650802,0.17890186,69902.0,69886.0,0.03845834]
[1773189651058,0.1426348,69901.0,69886.0,0.03845834]
[1773189651193,0.1426348,69904.0,69886.0,0.03845834]
[1773189651388,0.07152871,69902.0,69888.0,0.03701834]
[1773189655341,0.21416351,69902.0,69890.0,0.03701834]
[1773189656064,0.1426348,69901.0,69890.0,0.03701834]
[1773189656246,0.07174872,69902.0,69890.0,0.03701834]
[1773189657441,0.07174872,69902.0,69881.0,0.03721834]
[1773189657442,0.05459255,69900.0,69881.0,0.03721834]
[1773189657640,0.05459255,69891.0,69882.0,0.00144]
[1773189657840,0.03626706,69892.0,69882.0,0.00144]
[1773189660139,0.03626706,69891.0,69882.0,0.07298904]
[1773189661047,0.07297808,69893.0,69882.0,0.07298904]
[1773189661285,0.00144,69894.0,69883.0,0.03701834]
[1773189661489,0.07153661,69895.0,69883.0,0.03701834]
[1773189662240,0.07153382,69897.0,69885.0,0.03701834]
[1773189662447,0.21435337,69897.0,69885.0,0.03701834]
[1773189662648,0.001,69895.0,69885.0,0.03701834]
[1773189663033,0.07153014,69901.0,69885.0,0.03701834]
[1773189664332,0.07153014,69901.0,69887.0,0.03701834]
[1773189664527,0.00022001,69900.0,69888.0,0.00144]
[1773189665571,0.00022001,69900.0,69889.0,0.03701834]
[1773189666223,0.00022001,69900.0,69888.0,0.00144]
[1773189666435,0.07153178,69899.0,69876.0,0.0002]
[1773189666643,0.10419352,69898.0,69881.0,0.07318982]
[1773189666852,0.03626706,69897.0,69881.0,0.07318982]
[1773189667148,0.00144,69896.0,69881.0,0.07318982]
[1773189667387,0.00144,69896.0,69875.0,1e-08]
[1773189667388,0.03626706,69890.0,69875.0,1e-08]
[1773189667596,0.03626706,69883.0,69874.0,1e-08]
[1773189667797,0.03770706,69882.0,69874.0,1e-08]
[1773189667997,0.00144,69881.0,69874.0,1e-08]
[1773189668401,0.07155123,69880.0,69874.0,1e-08]
[1773189668619,0.142801,69885.0,69874.0,1e-08]
[1773189668620,0.03726706,69890.0,69875.0,0.03701834]
[1773189668822,0.00144,69888.0,69875.0,0.03701834]
[1773189669561,0.00144,69888.0,69876.0,0.00144]
[1773189670434,0.07154406,69887.0,69876.0,0.00144]
[1773189670643,0.11433858,69899.0,69876.0,0.00144]
[1773189670849,0.03626706,69897.0,69878.0,0.03701834]
[1773189671017,0.03626706,69897.0,69879.0,0.00144]
[1773189671232,0.03626706,69897.0,69880.0,0.03701834]
[1773189672338,0.03626706,69897.0,69879.0,0.00144]
[1773189672743,0.03626706,69895.0,69880.0,0.07155123]
[1773189674318,0.03626706,69895.0,69879.0,0.07155123]
[1773189674625,0.07153485,69896.0,69876.0,0.07356959]
[1773189674626,0.03626706,69889.0,69876.0,0.00057428]
[1773189674823,0.03626706,69887.0,69876.0,0.00057428]
[1773189675064,0.07298304,69888.0,69872.0,0.00562]
[1773189675065,0.05459255,69886.0,69872.0,0.00562]
[1773189675243,0.03626706,69881.0,69872.0,0.00562]
[1773189675384,0.03770706,69880.0,69872.0,0.00562]
[1773189675737,0.00144,69880.0,69872.0,0.00562]
[1773189676864,0.07299164,69880.0,69876.0,0.001]
[1773189677183,0.07299164,69880.0,69872.0,0.00562]
[1773189677464,0.03626706,69879.0,69872.0,0.00562]
[1773189679443,0.03626706,69879.0,69872.0,0.00582]
[1773189679775,0.00037433,69886.0,69873.0,0.07155839]
[1773189679944,0.00144,69885.0,69874.0,0.0348095]
[1773189680145,0.00181433,69886.0,69874.0,0.0348095]
[1773189680381,0.00144,69890.0,69874.0,0.0348095]
[1773189680543,0.00144,69890.0,69874.0,0.03518383]
[1773189680752,0.0377857,69890.0,69874.0,0.03518383]
[1773189680957,0.001,69886.0,69874.0,0.03518383]
[1773189681167,0.0377857,69890.0,69874.0,0.03518383]
[1773189681369,0.0363457,69889.0,69874.0,0.00037433]
[1773189681771,0.0363457,69887.0,69874.0,0.00037433]
[1773189682104,0.07154304,69888.0,69872.0,0.07737922]
[1773189682105,0.0363457,69883.0,69872.0,0.00582]
[1773189682259,0.03672003,69883.0,69872.0,0.00582]
[1773189682679,0.0363457,69881.0,69872.0,0.00582]
[1773189683807,0.07155123,69880.0,69872.0,0.00582]
[1773189684183,0.10789693,69880.0,69872.0,0.00582]
[1773189685104,0.07155037,69881.0,69872.0,0.00582]
[1773189685305,0.00144,69880.0,69872.0,0.00582]
[1773189688009,0.07155037,69881.0,69872.0,0.00582]
[1773189688208,0.07299149,69880.0,69872.0,0.00582]
[1773189690937,0.10933719,69880.0,69872.0,0.00582]
[1773189692850,0.07299149,69880.0,69872.0,0.00582]
[1773189693060,0.10933719,69880.0,69872.0,0.00582]
[1773189693777,0.11433858,69895.0,69872.0,0.00582]
[1773189693778,0.07153745,69894.0,69874.0,0.0348095]
[1773189693964,0.07153745,69894.0,69880.0,0.05459255]
[1773189693965,0.00144,69893.0,69880.0,0.05459255]
[1773189694287,0.00144,69893.0,69880.0,0.08940205]
[1773189694491,0.0377857,69893.0,69880.0,0.05459255]
[1773189694689,0.07153894,69892.0,69881.0,0.0715502]
[1773189695213,0.00144,69893.0,69882.0,0.0348095]
[1773189695375,0.00144,69892.0,69882.0,0.0348095]
[1773189696140,0.00144,69891.0,69882.0,0.0348095]
[1773189696513,0.00022001,69897.0,69882.0,0.0348095]
[1773189696691,0.00022001,69897.0,69884.0,0.0348095]
[1773189696899,0.00229001,69900.0,69888.0,0.0348095]
[1773189697431,0.00144,69900.0,69888.0,0.0348095]
[1773189697825,0.00144,69900.0,69890.0,0.0348095]
[1773189698552,0.00022001,69907.0,69890.0,0.0348095]
[1773189698767,0.00022001,69907.0,69892.0,0.0348095]
[1773189698944,0.00144,69906.0,69892.0,0.0348095]
[1773189699159,0.00144,69906.0,69888.0,0.07153996]
[1773189699160,0.00022001,69909.0,69875.0,0.00023]
[1773189699351,0.0363457,69901.0,69876.0,0.0348095]
[1773189699663,0.0363457,69899.0,69883.0,0.0348095]
[1773189699840,0.21431879,69909.0,69883.0,0.0348095]
[1773189699841,0.0363457,69897.0,69883.0,0.0348095]
[1773189700045,0.0363457,69897.0,69892.0,0.001]
[1773189700241,0.0363457,69897.0,69886.0,0.00144]
[1773189700615,0.07153383,69897.0,69886.0,0.10779458]
[1773189700815,0.07153345,69898.0,69887.0,0.0348095]
[1773189701480,0.001,69897.0,69887.0,0.0348095]
[1773189701878,0.0363457,69900.0,69887.0,0.0348095]
[1773189702178,0.07153088,69900.0,69887.0,0.0348095]
[1773189702775,0.07152833,69903.0,69889.0,0.0348095]
[1773189703348,0.00022001,69897.0,69889.0,0.0348095]
[1773189704184,0.10809339,69904.0,69889.0,0.0348095]
[1773189704185,0.00022001,69904.0,69889.0,0.0348095]
[1773189704575,0.07174692,69904.0,69890.0,0.07154099]
[1773189704776,0.07174692,69904.0,69891.0,0.0348095]
[1773189704972,0.07174692,69904.0,69892.0,0.00144]
[1773189706389,0.00022001,69904.0,69893.0,0.0348095]
[1773189706593,0.00022001,69904.0,69894.0,0.07153689]
[1773189706836,0.1080882,69909.0,69894.0,0.07153689]
[1773189706986,0.0717425,69909.0,69895.0,0.0348095]
[1773189708097,0.07174182,69909.0,69895.0,0.0348095]
[1773189708710,0.07174182,69909.0,69896.0,0.07153485]
[1773189709260,0.03654115,69908.0,69896.0,0.07153485]
[1773189710847,0.07152359,69907.0,69894.0,0.07153689]
[1773189711463,0.07177259,69907.0,69894.0,0.07153689]
[1773189715024,0.07177271,69907.0,69895.0,0.03728158]
[1773189715412,0.07177271,69907.0,69896.0,0.07153485]
[1773189716289,0.07199272,69907.0,69896.0,0.07153485]
[1773189717797,0.07199272,69907.0,69887.0,0.07154329]
[1773189717798,0.00023,69900.0,69860.0,0.3553741]
[1773189717997,0.00023,69900.0,69865.0,0.00067913]
[1773189717998,0.03657724,69888.0,69865.0,0.00067913]
[1773189718307,0.03657724,69886.0,69865.0,0.00067913]
[1773189718519,0.03657724,69886.0,69866.0,0.00144]
[1773189719781,0.07154611,69885.0,69866.0,0.00144]
[1773189719933,0.03657724,69884.0,69866.0,0.00144]
[1773189720134,0.00144,69883.0,69866.0,0.00144]
[1773189720380,0.03657724,69882.0,69866.0,0.00144]
[1773189720812,0.00144,69881.0,69867.0,0.07156454]
[1773189720967,0.07154611,69885.0,69868.0,0.03728158]
[1773189721842,0.07154201,69889.0,69869.0,0.07156249]
[1773189722046,0.07154201,69889.0,69870.0,0.03728158]
[1773189722252,0.07154201,69889.0,69872.0,0.03728158]
[1773189722456,0.07153954,69892.0,69873.0,0.00144]
[1773189722457,0.07153904,69892.0,69873.0,0.00144]
[1773189722673,0.07153904,69892.0,69874.0,0.03728158]
[1773189723122,0.17639524,69899.0,69874.0,0.03728158]
[1773189723123,0.07333048,69896.0,69874.0,0.03728158]
[1773189723427,0.071537,69894.0,69874.0,0.03728158]
[1773189724247,0.03657724,69897.0,69876.0,0.03728158]
[1773189725871,0.03657724,69897.0,69876.0,0.03828158]
[1773189726077,0.03657724,69897.0,69876.0,0.03728158]
[1773189726463,0.07153485,69896.0,69878.0,0.03728158]
[1773189726639,0.10811209,69896.0,69880.0,0.03728158]
[1773189727845,0.03657724,69895.0,69880.0,0.03728158]
[1773189728059,0.03657724,69893.0,69881.0,0.00144]
[1773189728268,0.03657724,69893.0,69875.0,0.07155532]
[1773189728269,0.07153894,69892.0,69875.0,0.07155626]
[1773189728475,0.03657724,69891.0,69876.0,0.00144]
[1773189729102,0.03657724,69891.0,69877.0,0.00144]
[1773189729746,0.03757724,69891.0,69877.0,0.00144]
[1773189729948,0.03657724,69891.0,69877.0,0.00144]
[1773189730324,0.03657724,69891.0,69878.0,0.00144]
[1773189730494,0.03657724,69889.0,69878.0,0.00144]
[1773189731905,0.03757724,69889.0,69878.0,0.00144]
[1773189732320,0.03657724,69889.0,69878.0,0.00144]
[1773189732545,0.07154304,69888.0,69878.0,0.00144]
[1773189732746,0.03657724,69887.0,69878.0,0.07299313]
[1773189733009,0.03657724,69887.0,69878.0,0.00144]
[1773189733427,0.03657724,69887.0,69878.0,0.0729924]
[1773189733677,0.07154304,69888.0,69878.0,0.0729924]
[1773189734462,0.10812028,69888.0,69878.0,0.0729924]
[1773189736169,0.10812028,69888.0,69870.0,0.0002]
[1773189736170,0.03657724,69887.0,69851.0,0.07169991]
[1773189736400,0.03657724,69887.0,69853.0,0.03728158]
[1773189736401,0.03657724,69879.0,69853.0,0.03728158]
[1773189736575,0.03657724,69877.0,69853.0,0.03728158]
[1773189737181,0.03657724,69875.0,69853.0,0.10886046]
[1773189739018,0.03757724,69875.0,69853.0,0.07157888]
[1773189739215,0.03757724,69875.0,69851.0,0.07169888]
[1773189739216,0.03657724,69873.0,69854.0,0.00144]
[1773189740097,0.03555515,69871.0,69854.0,0.00144]
[1773189740511,0.03555515,69871.0,69850.0,0.03515217]
[1773189740741,0.03555515,69871.0,69754.0,0.06428661]
[1773189740742,0.03555515,69871.0,69842.0,0.00144]
[1773189740743,0.03555515,69869.0,69842.0,0.00144]
[1773189740946,0.03555515,69869.0,69842.0,0.03770097]
[1773189741286,0.07156351,69868.0,69843.0,0.07158913]
[1773189741498,0.07156351,69868.0,69844.0,0.03626097]
[1773189741499,0.03555515,69867.0,69844.0,0.03626097]
[1773189741709,0.03555515,69865.0,69845.0,0.00144]
[1773189741952,0.03555515,69865.0,69845.0,0.03770097]
[1773189742836,0.03592948,69865.0,69845.0,0.03770097]
[1773189743431,0.07156761,69864.0,69846.0,0.07158606]